fUSD/lending_fUSD_20260527
["ID","MTS","AMOUNT","RATE_DAILY","PERIOD"]
[423134069,1779877838000,-985.5455574,0.00035,120]
[423134071,1779877838000,-192.78446307,0.00035,120]
[423134073,1779877838000,-183.27090891,0.00035,2]
[423134077,1779877838000,-4130.36512831,0.00035006,2]
[423134067,1779877838000,-1713.91,0.00034994,10]
[423134065,1779877838000,-1093.77228277,0.00034994,10]
[423134060,1779877838000,-2468.04,0.00034994,10]
[423134058,1779877838000,-1471.87,0.00034994,10]
[423134056,1779877838000,-75.98401608,0.00034948,2]
[423134053,1779877838000,-466.47680614,0.00034948,2]
[423134047,1779877838000,-1777.86171119,0.00034707,2]
[423134049,1779877838000,-162.461429,0.00034928,21]
[423134050,1779877838000,-3547.0,0.00034948,2]
[423134051,1779877838000,-385.53917778,0.00034948,2]
[423134048,1779877838000,-500.0,0.00034805,2]
[423134063,1779877838000,-962.92771723,0.00034994,10]
[423134163,1779877839000,-3729.75728392,0.00035179,2]
[423134164,1779877840000,-3648.30226182,0.00035179,2]
[423134166,1779877840000,-1428.26,0.00034994,10]
[423134167,1779877840000,-4782.5484774,0.0003528,2]
[423134165,1779877840000,-15454.39102433,0.0003528,2]
[423134182,1779877842000,-392.42899952,0.0003528,2]
[423134181,1779877842000,-184.72100048,0.00027397,2]
[423134183,1779877843000,-407.17799607,0.0003528,2]
[423134187,1779877843000,-682.25457126,0.00035393,2]
[423134185,1779877843000,-2000.0,0.0003529,2]
[423134188,1779877843000,-113.93037275,0.00035434,120]
[423134186,1779877843000,-237.57132874,0.00035393,2]
[423134191,1779877843000,-150.0,0.00035482,7]
[423134190,1779877843000,-150.0,0.00035482,7]
[423134184,1779877843000,-2571.83348674,0.0003528,2]
[423134189,1779877843000,-1574.55962725,0.00035434,120]
[423134194,1779877843000,-150.0,0.00035482,7]
[423134193,1779877843000,-150.0,0.00035482,7]
[423134195,1779877843000,-150.0,0.00035482,7]
[423134196,1779877843000,-150.0,0.00035482,7]
[423134198,1779877843000,-96.58416376,0.00035491,2]
[423134197,1779877843000,-412.9,0.0003549,2]
[423134192,1779877843000,-150.0,0.00035482,7]
[423134202,1779877845000,-1356.0,0.00034948,2]
[423134203,1779877845000,-999.70851974,0.00035491,2]
[423134204,1779877845000,-300.0,0.00035491,2]
[423134209,1779877845000,-300.0,0.00035491,2]
[423134207,1779877845000,-300.0,0.00035491,2]
[423134206,1779877845000,-300.0,0.00035491,2]
[423134208,1779877845000,-300.0,0.00035491,2]
[423134210,1779877845000,-300.0,0.00035491,2]
[423134205,1779877845000,-300.0,0.00035491,2]
[423134213,1779877845000,-300.0,0.00035491,2]
[423134215,1779877845000,-300.0,0.00035491,2]
[423134214,1779877845000,-300.0,0.00035491,2]
[423134216,1779877845000,-493.38669858,0.00035491,2]
[423134212,1779877845000,-300.0,0.00035491,2]
[423134217,1779877845000,-365.84666614,0.00035491,2]
[423134220,1779877845000,-280.71203273,0.00035491,2]
[423134219,1779877845000,-277.73722868,0.00035491,2]
[423134218,1779877845000,-22.26277132,0.00035491,2]
[423134211,1779877845000,-300.0,0.00035491,2]
[423134234,1779877846000,-302.21937029,0.00035491,2]
[423134235,1779877846000,-300.0,0.00035491,2]
[423134236,1779877846000,-300.0,0.00035491,2]
[423134239,1779877846000,-300.0,0.00035491,2]
[423134240,1779877846000,-300.0,0.00035491,2]
[423134237,1779877846000,-300.99795142,0.00035491,2]
[423134231,1779877846000,-593.8810887,0.00035491,2]
[423134238,1779877846000,-300.0,0.00035491,2]
[423134233,1779877846000,-300.0,0.00035491,2]
[423134226,1779877846000,-300.0,0.00035491,2]
[423134230,1779877846000,-894.65434383,0.00035491,2]
[423134225,1779877846000,-75.68776761,0.00035491,2]
[423134228,1779877846000,-528.48327171,0.00035491,2]
[423134229,1779877846000,-1068.40163352,0.00035491,2]
[423134227,1779877846000,-300.0,0.00035491,2]
[423134224,1779877846000,-224.31223239,0.00035491,2]
[423134222,1779877846000,-300.0,0.00035491,2]
[423134223,1779877846000,-605.31118564,0.00035491,2]
[423134241,1779877846000,-300.0,0.00035491,2]
[423134232,1779877846000,-727.07827244,0.00035491,2]
[423134242,1779877846000,-300.0,0.00035491,2]
[423134221,1779877846000,-19.28796727,0.00035491,2]
[423134243,1779877846000,-300.0,0.00035491,2]
[423134265,1779877846000,-252.48168435,0.00035491,2]
[423134262,1779877846000,-300.0,0.00035491,2]
[423134263,1779877846000,-300.0,0.00035491,2]
[423134264,1779877846000,-1634.44392223,0.00035491,2]
[423134261,1779877846000,-310.02493426,0.00035491,2]
[423134260,1779877846000,-1148.83589152,0.00035491,2]
[423134259,1779877846000,-300.0,0.00035491,2]
[423134258,1779877846000,-300.09384644,0.00035491,2]
[423134254,1779877846000,-300.0,0.00035491,2]
[423134255,1779877846000,-300.0,0.00035491,2]
[423134257,1779877846000,-950.32029804,0.00035491,2]
[423134253,1779877846000,-300.0,0.00035491,2]
[423134251,1779877846000,-53.09892066,0.00035491,2]
[423134250,1779877846000,-165.203435,0.000353,2]
[423134252,1779877846000,-300.0,0.00035491,2]
[423134249,1779877846000,-474.52680338,0.00035491,2]
[423134248,1779877846000,-344.45437934,0.00035491,2]
[423134247,1779877846000,-300.0,0.00035491,2]
[423134246,1779877846000,-1263.96825586,0.00035491,2]
[423134245,1779877846000,-1.82187911,0.00035491,2]
[423134256,1779877846000,-865.6208675,0.00035491,2]
[423134244,1779877846000,-298.17812089,0.00035491,2]
[423134293,1779878003000,-2097.5302,0.00024174,2]
[423134294,1779878154000,-3213.8598,0.00024174,2]
[423134295,1779878154000,-604.0,0.00025082,2]
[423134297,1779878154000,-2399.93501994,0.00025786,2]
[423134296,1779878154000,-209.92478006,0.00025686,2]
[423134298,1779878155000,-2911.45498006,0.00025786,2]
[423134299,1779878155000,-250.0,0.00026591,2]
[423134300,1779878155000,-52.40481994,0.00026903,2]
[423134301,1779878155000,-162.98046491,0.00026903,2]
[423134304,1779878155000,-157.5,0.00030479,30]
[423134303,1779878155000,-193.29,0.00029,2]
[423134302,1779878155000,-206.01672532,0.000282,2]
[423134307,1779878155000,-151.0,0.00031419,2]
[423134306,1779878155000,-161.76,0.00030626,30]
[423134309,1779878155000,-471.53212381,0.00032128,2]
[423134308,1779878155000,-197.10911148,0.00032,120]
[423134310,1779878155000,-450.0,0.00032128,2]
[423134311,1779878155000,-186.81,0.00032128,2]
[423134305,1779878155000,-170.16,0.00030576,30]
[423134317,1779878157000,-1000.0,0.00030522,10]
[423134316,1779878157000,-1541.0,0.00030484,2]
[423134315,1779878157000,-666.1402,0.00030385,10]
[423134313,1779878157000,-1680.0,0.00028036,2]
[423134314,1779878157000,-333.8598,0.00030385,10]
[423134312,1779878157000,-1200.0,0.00025785,2]
[423134318,1779878165000,504.7,0.00017044,2]
[423134320,1779878166000,504.7,0.00018838,2]
[423134319,1779878166000,504.7,0.00017941,2]
[423134322,1779878166000,504.7,0.00020632,2]
[423134323,1779878166000,504.7,0.00021529,2]
[423134321,1779878166000,504.7,0.00019735,2]
[423134328,1779878167000,504.7,0.00026014,2]
[423134327,1779878167000,504.7,0.00025117,2]
[423134326,1779878167000,504.7,0.0002422,2]
[423134325,1779878167000,504.7,0.00023323,2]
[423134324,1779878167000,504.7,0.00022426,2]
[423134331,1779878168000,504.7,0.00028706,2]
[423134330,1779878168000,504.7,0.00027809,2]
[423134329,1779878168000,504.7,0.00026911,2]
[423134332,1779878169000,160.0,0.00024174,2]
[423134333,1779878181000,500.0,0.00024074,2]
[423134334,1779878252000,2000.0,0.00029,2]
[423134335,1779878263000,604.0,0.00026,2]
[423134336,1779878298000,250.0,0.00014,2]
[423134337,1779878301000,150.0,0.0002871,2]
[423134338,1779878363000,-522.18598028,0.00029598,2]
[423134339,1779878405000,212.45574764,0.00022,3]
[423134343,1779878416000,-1518.01972291,0.00029598,2]
[423134344,1779878437000,-1493.87660918,0.00029598,2]
[423134345,1779878457000,-587.99012299,0.00029598,2]
[423134346,1779878477000,-208.97895572,0.00029582,2]
[423134347,1779878531000,-605.31118564,0.00029542,2]
[423134348,1779878551000,-300.00000001,0.00029542,2]
[423134351,1779878571000,-300.0,0.00029542,2]
[423134352,1779878591000,-11.46976945,0.00029542,2]
[423134353,1779878760000,-9057.76425236,0.00029598,2]
[423134355,1779878760000,-1168.0888929,0.00029598,2]
[423134356,1779878760000,-4910.09728922,0.00029598,2]
[423134357,1779878760000,-9605.47694968,0.00029598,2]
[423134354,1779878760000,-3921.82381788,0.00029598,2]
[423134359,1779878761000,-215.46156935,0.00029598,2]
[423134358,1779878761000,300.0,0.00029597,2]
[423134360,1779878762000,-2328.7110028,0.00029168,2]
[423134361,1779878763000,-286.75,0.00024658,2]
[423134362,1779878763000,-688.0,0.00029597,2]
[423134366,1779878925000,-344.7,0.00029603,2]
[423134365,1779878925000,-160.0,0.00029,2]
[423134367,1779878925000,-504.7,0.000289,5]
[423134368,1779878925000,-504.7,0.000289,5]
[423134370,1779878926000,-504.7,0.000289,5]
[423134369,1779878926000,-504.7,0.000289,5]
[423134371,1779878927000,-907.78498084,0.000289,5]
[423134372,1779878927000,-504.7,0.000289,5]
[423134374,1779878927000,-504.7,0.000289,5]
[423134373,1779878927000,-533.41553212,0.000289,5]
[423134378,1779878927000,-160.0,0.00029603,2]
[423134376,1779878927000,-504.7,0.00028939,2]
[423134377,1779878927000,-299.3528062,0.00028939,2]
[423134379,1779878927000,-45.3471938,0.00029717,30]
[423134375,1779878927000,-504.7,0.00028939,2]
[423134381,1779878928000,-386.0471938,0.000305,2]
[423134380,1779878928000,-118.6528062,0.00029717,30]
[423134382,1779878928000,-118.6528062,0.000305,2]
[423134386,1779878928000,-504.7,0.0003104,2]
[423134384,1779878928000,-220.0471938,0.0003104,2]
[423134385,1779878928000,-504.7,0.0003104,2]
[423134383,1779878928000,-166.0,0.00030717,30]
[423134387,1779878929000,-504.7,0.0003104,2]
[423134399,1779878972000,-36.25805509,0.00031833,7]
[423134396,1779878972000,-150.0,0.00031833,7]
[423134398,1779878972000,-150.0,0.00031833,7]
[423134397,1779878972000,-150.0,0.00031833,7]
[423134395,1779878972000,-150.0,0.00031833,7]
[423134392,1779878972000,-150.0,0.00031833,7]
[423134394,1779878972000,-150.0,0.00031833,7]
[423134391,1779878972000,-150.0,0.00031833,7]
[423134393,1779878972000,-150.0,0.00031833,7]
[423134390,1779878972000,-504.7,0.00031397,2]
[423134389,1779878972000,-1919.39101235,0.0003104,2]
[423134388,1779878972000,-1011.0,0.000282,5]
[423134400,1779879003000,160.12,0.0001626,2]
[423134401,1779879004000,160.12,0.0001897,2]
[423134402,1779879004000,160.12,0.0002168,2]
[423134419,1779879031000,-150.0,0.0003219,30]
[423134409,1779879031000,-160.12,0.00027099,2]
[423134410,1779879031000,-160.12,0.00029809,2]
[423134408,1779879031000,-160.12,0.00024389,2]
[423134411,1779879031000,-113.97020934,0.00031833,7]
[423134413,1779879031000,-150.0,0.00031833,7]
[423134412,1779879031000,-150.0,0.00031833,7]
[423134414,1779879031000,-150.0,0.00031932,30]
[423134416,1779879031000,-197.10911148,0.00032,120]
[423134417,1779879031000,-150.0,0.00032061,30]
[423134418,1779879031000,-150.0,0.00032125,30]
[423134422,1779879031000,-504.7,0.00032294,2]
[423134415,1779879031000,-150.0,0.00031996,30]
[423134424,1779879031000,-43.86713397,0.00032327,7]
[423134420,1779879031000,-108.73471216,0.00032254,30]
[423134434,1779879031000,-255.75980045,0.00032501,120]
[423134427,1779879031000,-93.56911175,0.0003235,2]
[423134433,1779879031000,-2280.46180613,0.00032501,120]
[423134428,1779879031000,-400.76088825,0.0003235,2]
[423134429,1779879031000,-150.0,0.00032383,30]
[423134430,1779879031000,-1308.7528062,0.00032428,2]
[423134432,1779879031000,-400.0,0.000325,2]
[423134423,1779879031000,-150.0,0.00032319,30]
[423134431,1779879031000,-150.0,0.00032448,30]
[423134421,1779879031000,-41.26528784,0.00032254,30]
[423134425,1779879031000,-113.63286603,0.00032327,7]
[423134426,1779879031000,-1087.441,0.00032336,32]
[423134474,1779879032000,-150.0,0.00033093,30]
[423134463,1779879032000,-150.0,0.00033012,7]
[423134472,1779879032000,-2552.62781358,0.00033086,2]
[423134467,1779879032000,-150.0,0.00033012,7]
[423134468,1779879032000,-150.0,0.00033028,30]
[423134470,1779879032000,-2447.37218642,0.00033086,2]
[423134483,1779879032000,-366.16,0.00033242,2]
[423134479,1779879032000,-504.7,0.00033191,2]
[423134488,1779879032000,-150.0,0.00033286,30]
[423134465,1779879032000,-150.0,0.00033012,7]
[423134485,1779879032000,-150.0,0.00033248,7]
[423134496,1779879032000,-744.81,0.00033331,2]
[423134477,1779879032000,-150.0,0.00033157,30]
[423134481,1779879032000,-150.0,0.00033222,30]
[423134492,1779879032000,-240.31,0.00033322,2]
[423134498,1779879032000,-150.0,0.00033351,30]
[423134494,1779879032000,-161.76,0.00033324,7]
[423134500,1779879032000,-168.02,0.00033373,2]
[423134510,1779879032000,-150.0,0.00033609,30]
[423134506,1779879032000,-150.0,0.00033544,30]
[423134507,1779879032000,-170.16,0.00033596,7]
[423134504,1779879032000,-150.0,0.00033415,30]
[423134469,1779879032000,-500.0,0.00033028,30]
[423134490,1779879032000,-500.0,0.00033302,30]
[423134458,1779879032000,-150.0,0.00032899,30]
[423134438,1779879032000,-988.46017311,0.00032509,2]
[423134461,1779879032000,-197.10911148,0.00033,120]
[423134435,1779879032000,-301.48251273,0.00032501,120]
[423134436,1779879032000,-1206.96082785,0.00032501,120]
[423134442,1779879032000,-148.75124331,0.00032518,2]
[423134439,1779879032000,-1575.73615394,0.00032509,2]
[423134441,1779879032000,-150.0,0.00032512,30]
[423134437,1779879032000,-1423.65505284,0.00032501,120]
[423134443,1779879032000,-596.05875669,0.00032518,2]
[423134444,1779879032000,-155.43653191,0.00032519,2]
[423134440,1779879032000,-282.97367295,0.00032509,2]
[423134505,1779879032000,-150.0,0.0003348,30]
[423134445,1779879032000,-44.56346809,0.00032519,2]
[423134449,1779879032000,-200.0,0.00032554,2]
[423134446,1779879032000,-160.12,0.00032519,2]
[423134448,1779879032000,-1702.46,0.00032545,120]
[423134447,1779879032000,-150.0,0.0003254,7]
[423134455,1779879032000,-150.0,0.0003277,30]
[423134453,1779879032000,-150.0,0.00032706,30]
[423134451,1779879032000,-150.0,0.00032577,30]
[423134450,1779879032000,-188.53,0.00032566,120]
[423134452,1779879032000,-150.0,0.00032641,30]
[423134454,1779879032000,-150.0,0.00032717,7]
[423134456,1779879032000,-150.0,0.00032835,30]
[423134457,1779879032000,-555.93558815,0.00032856,2]
[423134459,1779879032000,-150.0,0.00032964,30]
[423134508,1779879032000,-150.0,0.00033601,7]
[423134550,1779879032000,-1015.27,0.00034502,10]
[423134509,1779879032000,-150.0,0.00033601,7]
[423134537,1779879032000,-157.5,0.00034175,2]
[423134539,1779879032000,-150.0,0.00034191,7]
[423134535,1779879032000,-150.0,0.00034125,30]
[423134542,1779879032000,-150.0,0.00034254,30]
[423134551,1779879032000,-150.0,0.00034512,30]
[423134552,1779879032000,-150.0,0.00034576,30]
[423134543,1779879032000,-1613.39,0.00034298,10]
[423134553,1779879032000,-150.0,0.00034641,30]
[423134554,1779879032000,-150.0,0.00034662,7]
[423134545,1779879032000,-150.0,0.00034318,30]
[423134549,1779879032000,-3657.305867,0.00034489,2]
[423134547,1779879032000,-150.0,0.00034447,30]
[423134548,1779879032000,-150.0,0.00034486,7]
[423134544,1779879032000,-1936.06,0.00034308,10]
[423134546,1779879032000,-150.0,0.00034383,30]
[423134555,1779879032000,-150.0,0.00034705,30]
[423134557,1779879032000,-150.0,0.00034834,30]
[423134558,1779879032000,-150.0,0.00034899,30]
[423134559,1779879032000,-560.0,0.00034937,2]
[423134556,1779879032000,-150.0,0.0003477,30]
[423134560,1779879032000,-744.81,0.00034957,2]
[423134562,1779879032000,-197.10911148,0.00035,120]
[423134561,1779879032000,-150.0,0.00034963,30]
[423134534,1779879032000,-504.7,0.00034088,2]
[423134536,1779879032000,-744.81,0.00034144,2]
[423134538,1779879032000,-150.0,0.00034189,30]
[423134533,1779879032000,-150.0,0.0003406,30]
[423134512,1779879032000,-155.08,0.00033612,120]
[423134515,1779879032000,-150.0,0.00033738,30]
[423134511,1779879032000,-243.73,0.00033611,120]
[423134518,1779879032000,-150.0,0.00033802,30]
[423134516,1779879032000,-272.20692,0.00033799,21]
[423134514,1779879032000,-1614.2128632,0.00033728,2]
[423134513,1779879032000,-150.0,0.00033673,30]
[423134517,1779879032000,-272.206921,0.00033799,21]
[423134520,1779879032000,-5278.19,0.00033844,2]
[423134532,1779879032000,-150.0,0.00033996,30]
[423134528,1779879032000,-105.77538866,0.00033867,30]
[423134521,1779879032000,-3768.51,0.00033844,2]
[423134519,1779879032000,-1000.0,0.00033842,2]
[423134522,1779879032000,-1993.00647622,0.00033844,2]
[423134531,1779879032000,-150.0,0.00033955,7]
[423134523,1779879032000,-5082.46352378,0.00033844,2]
[423134540,1779879032000,-150.0,0.00034191,7]
[423134541,1779879032000,-150.0,0.00034191,7]
[423134529,1779879032000,-197.10911148,0.000339,120]
[423134526,1779879032000,-999.99,0.00033844,10]
[423134527,1779879032000,-44.22461134,0.00033867,30]
[423134525,1779879032000,-194.35,0.00033844,2]
[423134524,1779879032000,-299.99,0.00033844,30]
[423134530,1779879032000,-150.0,0.00033931,30]
[423134502,1779879032000,-601.82234678,0.00033388,2]
[423134567,1779879033000,-13078.6558,0.00035066,2]
[423134565,1779879033000,-824.33943587,0.00035,3]
[423134563,1779879033000,-150.0,0.00035,4]
[423134564,1779879033000,-2000.0,0.00035,7]
[423134566,1779879033000,-150.0,0.00035028,30]
[423134568,1779879033000,-2000.0,0.00035066,2]
[423134573,1779879033000,-150.0,0.00035221,30]
[423134575,1779879033000,-620.94018237,0.00035281,2]
[423134574,1779879033000,-4413.23944104,0.00035281,2]
[423134569,1779879033000,-500.49,0.00035071,2]
[423134570,1779879033000,-150.0,0.00035092,30]
[423134572,1779879033000,-150.0,0.00035157,30]
[423134571,1779879033000,-2000.0,0.000351,7]
[423134576,1779879033000,-665.62542729,0.00035281,2]
[423134581,1779879037000,-2726.01696543,0.00035281,2]
[423134579,1779879037000,-335.16,0.00032377,2]
[423134580,1779879037000,-1344.49,0.00034288,10]
[423134582,1779879038000,-2393.28080658,0.00035281,2]
[423134583,1779879038000,-1488.52850447,0.00035281,2]
[423134584,1779879038000,-1516.61045771,0.00035281,2]
[423134585,1779879038000,-2621.19849465,0.00035281,2]
[423134589,1779879038000,-186.08578328,0.00035281,2]
[423134588,1779879038000,-503.47737862,0.00035281,2]
[423134590,1779879038000,-366.84534688,0.00035281,2]
[423134586,1779879038000,-2762.94568636,0.00035281,2]
[423134591,1779879038000,-446.26987052,0.00035281,2]
[423134587,1779879038000,-571.18927001,0.00035281,2]
[423134663,1779879040000,-1686.8847826,0.00035281,2]
[423134664,1779879040000,-150.0,0.00035286,30]
[423134665,1779879040000,-1400.52537883,0.0003529,2]
[423134666,1779879040000,-492.34712249,0.0003529,2]
[423134668,1779879040000,-21.94513929,0.00035292,2]
[423134667,1779879040000,-37.32325317,0.0003529,2]
[423134674,1779879040000,-88.19389822,0.0003537,7]
[423134671,1779879040000,-199.11874836,0.0003537,7]
[423134670,1779879040000,-150.0,0.0003535,30]
[423134672,1779879040000,-150.0,0.0003537,7]
[423134673,1779879040000,-150.0,0.0003537,7]
[423134675,1779879040000,-175.0690697,0.0003537,7]
[423134677,1779879040000,-150.0,0.0003537,7]
[423134676,1779879040000,-150.0,0.0003537,7]
[423134678,1779879040000,-216.749532,0.0003537,7]
[423134679,1779879040000,-5518.9898757,0.0003537,2]
[423134669,1779879040000,-264.53590836,0.00035292,2]
[423134697,1779879043000,-500.0,0.0003538,7]
[423134693,1779879043000,-181.08973599,0.00035371,2]
[423134694,1779879043000,-500.0,0.0003538,7]
[423134690,1779879043000,-456.92043422,0.0003537,2]
[423134692,1779879043000,-1053.51908057,0.0003537,2]
[423134691,1779879043000,-288.57060951,0.0003537,2]
[423134696,1779879043000,-41.29151105,0.0003538,7]
[423134695,1779879043000,-458.70848895,0.0003538,7]
[423134700,1779879043000,-412.9,0.0003538,2]
[423134699,1779879043000,-500.0,0.0003538,7]
[423134698,1779879043000,-500.0,0.0003538,7]
[423134702,1779879043000,-18103.01788856,0.00035381,2]
[423134705,1779879043000,-10584.35291694,0.00035381,2]
[423134703,1779879043000,-409.53,0.00035381,2]
[423134704,1779879043000,-9173.40769887,0.00035381,2]
[423134707,1779879043000,-1221.81508103,0.00035381,2]
[423134706,1779879043000,-833.26908932,0.00035381,2]
[423134708,1779879043000,-3548.76205583,0.00035381,2]
[423134701,1779879043000,-11811.64092961,0.00035381,5]
[423134728,1779879046000,-511.63701206,0.00035381,2]
[423134724,1779879046000,-1939.80203978,0.00035381,2]
[423134726,1779879046000,-7521.88673891,0.00035381,2]
[423134727,1779879046000,-81.90657694,0.00035381,2]
[423134725,1779879046000,-492.98298303,0.00035381,2]
[423134730,1779879046000,-576.47645733,0.00035371,10]
[423134733,1779879046000,-366.69020406,0.00035381,2]
[423134729,1779879046000,-381.23466672,0.00035381,2]
[423134731,1779879046000,-543.93354267,0.00035371,10]
[423134732,1779879046000,-240.26527201,0.00035381,2]
[423134739,1779879361000,-556.0,0.00025082,2]
[423134740,1779879512000,-151.0,0.00026983,2]
[423134741,1779879523000,-151.0,0.00029598,2]
[423134744,1779879566000,-151.0,0.00030137,10]
[423134742,1779879566000,-35.81,0.00029598,2]
[423134743,1779879566000,-115.19,0.00030137,10]
[423134749,1779879567000,-129.81,0.00030137,10]
[423134750,1779879567000,-21.19,0.00030137,10]
[423134748,1779879567000,-151.0,0.00030137,10]
[423134746,1779879567000,-151.0,0.00030137,10]
[423134745,1779879567000,-151.0,0.00030137,10]
[423134747,1779879567000,-151.0,0.00030137,10]
[423134755,1779879568000,-3.0,0.00030137,10]
[423134754,1779879568000,-148.0,0.00029498,102]
[423134753,1779879568000,-151.0,0.00029498,102]
[423134752,1779879568000,-151.0,0.00029498,102]
[423134751,1779879568000,-151.0,0.00030137,10]
[423134756,1779879569000,-151.0,0.00030137,10]
[423134757,1779879583000,150.0,0.00026498,2]
[423134759,1779879583000,150.0,0.00026498,2]
[423134758,1779879583000,150.0,0.00026498,2]
[423134761,1779879599000,-81.16646725,0.00030137,10]
[423134762,1779879603000,229.94084985,0.00029148,120]
[423134768,1779879653000,-301.2256174,0.00030137,10]
[423134769,1779879728000,1262.730835,7.945e-05,2]
[423134772,1779879817000,-106.0,0.00026498,2]
[423134773,1779879893000,-150.42,0.00027043,2]
[423134774,1779879993000,-203.55979943,0.0002913,7]
[423134775,1779879993000,-291.41791535,0.00030137,10]
[423134777,1779879993000,-17.03648101,0.00031811,30]
[423134776,1779879993000,-1000.0,0.00030137,10]
[423134781,1779880011000,153.18,0.00023914,2]
[423134780,1779880011000,153.18,0.00021523,2]
[423134779,1779880011000,153.18,0.00019132,2]
[423134778,1779880011000,153.18,0.0001674,2]
[423134783,1779880012000,153.18,0.00028697,2]
[423134782,1779880012000,153.18,0.00026306,2]
[423134784,1779880029000,-153.18,0.00031089,2]
[423134785,1779880029000,-167.46,0.00031747,30]
[423134789,1779880029000,-444.17787544,0.00032,120]
[423134787,1779880029000,-157.5,0.00031909,30]
[423134788,1779880029000,-1600.0,0.00031999,3]
[423134786,1779880029000,-170.16,0.00031811,30]
[423134794,1779880232000,-272.94649381,0.00030137,2]
[423134793,1779880232000,-373.18701238,0.00030137,2]
[423134813,1779880235000,-2138.28252683,0.00033,120]
[423134816,1779880235000,-1361.96,0.00033466,120]
[423134815,1779880235000,-2500.0,0.00033465,120]
[423134818,1779880235000,-153.18,0.0003348,2]
[423134817,1779880235000,-200.0,0.0003348,2]
[423134819,1779880235000,-500.0,0.00033507,2]
[423134823,1779880235000,-510.3,0.00033628,2]
[423134825,1779880235000,-5000.0,0.00033661,2]
[423134826,1779880235000,-18000.1864491,0.00033717,2]
[423134821,1779880235000,-256.72,0.00033551,2]
[423134822,1779880235000,-163.52,0.00033628,2]
[423134820,1779880235000,-2962.35,0.00033513,2]
[423134824,1779880235000,-213.93849686,0.00033628,2]
[423134810,1779880235000,-173.68685981,0.00032774,2]
[423134814,1779880235000,-155.08,0.00033456,120]
[423134811,1779880235000,-196.30246018,0.00032774,2]
[423134809,1779880235000,-276.31314019,0.00032774,2]
[423134808,1779880235000,-191.78446304,0.00032,120]
[423134807,1779880235000,-41.90239677,0.00032,120]
[423134805,1779880235000,-664.35765274,0.00032,120]
[423134802,1779880235000,-39.6689488,0.00032,120]
[423134799,1779880235000,-57.07326758,0.00031807,30]
[423134801,1779880235000,-161.76,0.00031896,30]
[423134806,1779880235000,-155.20671471,0.00032,120]
[423134800,1779880235000,-157.5,0.00031844,30]
[423134803,1779880235000,-488.2708,0.00032,120]
[423134804,1779880235000,-501.80724985,0.00032,120]
[423134797,1779880235000,-309.14389434,0.00031707,118]
[423134798,1779880235000,-96.06673242,0.00031807,30]
[423134812,1779880235000,-275.22966363,0.00032774,2]
[423134828,1779880235000,-150.69734918,0.000338,120]
[423134827,1779880235000,-4009.2352366,0.00033717,2]
[423134829,1779880235000,-2138.28252683,0.000339,120]
[423134838,1779880235000,-150.0,0.00034521,7]
[423134860,1779880235000,-250.0,0.00035,2]
[423134857,1779880235000,-33833.90016436,0.00035,2]
[423134858,1779880235000,-474.20905484,0.00035,2]
[423134859,1779880235000,-448.42004428,0.00035,2]
[423134856,1779880235000,-43592.63808197,0.00035,2]
[423134852,1779880235000,-199.68,0.00034986,10]
[423134855,1779880235000,-32679.71314215,0.00035,2]
[423134854,1779880235000,-500.0,0.00034999,7]
[423134853,1779880235000,-166.4,0.00034986,10]